fUST/lending_fUST_20240821
["ID","MTS","AMOUNT","RATE_DAILY","PERIOD"]
[335428230,1724224242727,-1686.9,0.00034931,21]
[335428231,1724224242737,-500.0,0.00034931,21]
[335428232,1724224242746,-1686.9,0.00034931,21]
[335428233,1724224242755,-500.0,0.00034931,21]
[335428234,1724224242764,-1686.9,0.00034931,21]
[335428235,1724224242774,-500.0,0.00034931,21]
[335428236,1724224242783,-1686.94129643,0.00034931,21]
[335428237,1724224242792,-500.0,0.00034931,21]
[335428238,1724224242802,-500.0,0.00034931,21]
[335428239,1724224242812,-500.0,0.00034931,21]
[335428240,1724224242823,-500.0,0.00034931,21]
[335428241,1724224242831,-500.0,0.00034931,21]
[335428242,1724224242840,-500.0,0.00034931,21]
[335428243,1724224242850,-500.0,0.00034931,21]
[335428244,1724224242860,-500.0,0.00034931,21]
[335428245,1724224242870,-500.0,0.00034931,21]
[335428246,1724224242879,-500.0,0.00034931,21]
[335428247,1724224242889,-500.0,0.00034931,21]
[335428248,1724224242898,-500.0,0.00034931,21]
[335428249,1724224242907,-500.0,0.00034931,21]
[335428250,1724224242917,-166.3560641,0.00034931,21]
[335428251,1724224242926,-500.0,0.00034931,21]
[335428252,1724224242936,-500.0,0.00034931,21]
[335428253,1724224242944,-500.0,0.00034931,21]
[335428254,1724224242954,-500.0,0.00034931,21]
[335428255,1724224242963,-500.0,0.00034931,21]
[335428256,1724224242972,-597.15651412,0.00034931,21]
[335428257,1724224242981,-292.34485623,0.00034931,21]
[335428258,1724224242991,-500.0,0.00034931,21]
[335428259,1724224243000,-915.02,0.00034931,21]
[335428260,1724224243009,-500.0,0.00034931,21]
[335428261,1724224243019,-915.02,0.00034931,21]
[335428262,1724224243028,-915.02,0.00034931,21]
[335428263,1724224243038,-500.0,0.00034931,21]
[335428264,1724224243047,-915.02,0.00034931,21]
[335428265,1724224243056,-500.0,0.00034931,21]
[335428266,1724224243066,-500.0,0.00034931,21]
[335428267,1724224243076,-915.02,0.00034931,21]
[335428268,1724224243085,-500.0,0.00034931,21]
[335428269,1724224243094,-500.0,0.00034931,21]
[335428270,1724224243103,-915.02,0.00034931,21]
[335428271,1724224243112,-500.0,0.00034931,21]
[335428272,1724224243121,-500.0,0.00034931,21]
[335428273,1724224243130,-500.0,0.00034931,21]
[335428274,1724224243140,-915.02,0.00034931,21]
[335428275,1724224243149,-500.0,0.00034931,21]
[335428276,1724224243158,-185.6159274,0.00034931,21]
[335428277,1724224243167,-500.0,0.00034931,21]
[335428278,1724224243177,-500.0,0.00034931,2]
[335428279,1724224243186,-915.02,0.00034931,21]
[335428280,1724224243196,-503.18879378,0.00034931,21]
[335428281,1724224243205,-500.88537781,0.00034931,2]
[335428282,1724224243215,-500.0,0.00034931,21]
[335428283,1724224243224,-915.02,0.00034931,21]
[335428284,1724224243234,-500.0,0.00034931,21]
[335428285,1724224243243,-915.02,0.00034931,21]
[335428286,1724224243252,-915.02,0.00034931,21]
[335428287,1724224243262,-500.0,0.00034931,21]
[335428288,1724224243272,-915.02,0.00034931,21]
[335428289,1724224243282,-247.89089237,0.00034931,21]
[335428290,1724224243292,-500.0,0.00034931,21]
[335428291,1724224243301,-915.02,0.00034931,21]
[335428292,1724224243311,-500.0,0.00034931,21]
[335428293,1724224243322,-500.0,0.00034931,21]
[335428294,1724224243336,-500.0,0.00034931,21]
[335428295,1724224243345,-915.02,0.00034931,21]
[335428296,1724224243355,-480.46319267,0.00034931,21]
[335428297,1724224243364,-500.0,0.00034931,21]
[335428298,1724224243375,-915.02,0.00034931,21]
[335428299,1724224243384,-539.95455463,0.00034931,21]
[335428300,1724224243394,-915.02,0.00034931,21]
[335428301,1724224243407,-915.02,0.00034931,21]
[335428302,1724224243416,-915.02,0.00034931,21]
[335428303,1724224243426,-500.0,0.00034931,21]
[335428304,1724224243435,-1325.3,0.00034931,21]
[335428305,1724224243444,-500.0,0.00034931,21]
[335428306,1724224243454,-915.02,0.00034931,21]
[335428307,1724224243463,-1325.3,0.00034931,21]
[335428308,1724224243474,-915.02,0.00034931,21]
[335428309,1724224243485,-1325.3,0.00034931,21]
[335428310,1724224243495,-1325.3,0.00034931,21]
[335428311,1724224243506,-1325.3,0.00034931,21]
[335428312,1724224243516,-915.02,0.00034931,21]
[335428313,1724224243526,-1325.3,0.00034931,21]
[335428314,1724224243535,-915.02,0.00034931,21]
[335428315,1724224243545,-1325.3,0.00034931,21]
[335428316,1724224243555,-915.02,0.00034931,21]
[335428317,1724224243564,-1325.3,0.00034931,21]
[335428318,1724224243575,-915.0424218,0.00034931,21]
[335428319,1724224243585,-1325.3,0.00034931,21]
[335428320,1724224243595,-1325.3,0.00034931,21]
[335428321,1724224243604,-500.0,0.00034931,21]
[335428322,1724224243613,-500.0,0.00034931,21]
[335428323,1724224243623,-1325.3,0.00034931,21]
[335428324,1724224243633,-500.0,0.00034931,21]
[335428325,1724224243643,-500.0,0.00034931,21]
[335428326,1724224243652,-1325.3,0.00034931,21]
[335428327,1724224243661,-500.0,0.00034931,21]
[335428328,1724224243672,-500.0,0.00034931,21]
[335428329,1724224243681,-281.67,0.00034931,21]
[335428330,1724224243691,-1325.3,0.00034931,21]
[335428331,1724224243700,-500.0,0.00034931,21]
[335428332,1724224243710,-500.0,0.00034931,21]
[335428333,1724224243719,-1325.3,0.00034931,21]
[335428334,1724224243729,-1325.3,0.00034931,21]
[335428335,1724224243739,-500.0,0.00034931,21]
[335428336,1724224243748,-1325.3,0.00034931,21]
[335428337,1724224243758,-500.0,0.00034931,21]
[335428338,1724224243767,-500.0,0.00034931,21]
[335428339,1724224243777,-1325.3,0.00034931,21]
[335428340,1724224243786,-500.0,0.00034931,21]
[335428341,1724224243796,-1325.3,0.00034931,21]
[335428342,1724224243806,-500.0,0.00034931,21]
[335428343,1724224243877,-1325.3,0.00034931,21]
[335428344,1724224243894,-500.0,0.00034931,21]
[335428345,1724224243904,-500.0,0.00034931,21]
[335428346,1724224243913,-1325.3,0.00034931,21]
[335428347,1724224243922,-500.0,0.00034931,21]
[335428348,1724224243931,-1325.3,0.00034931,21]
[335428349,1724224243941,-1325.3,0.00034931,21]
[335428350,1724224243951,-500.0,0.00034931,21]
[335428351,1724224243960,-1325.3,0.00034931,21]
[335428352,1724224243969,-500.0,0.00034931,21]
[335428353,1724224243979,-1325.45103517,0.00034931,21]
[335428354,1724224243988,-500.0,0.00034931,21]
[335428355,1724224243997,-500.0,0.00034931,21]
[335428356,1724224244007,-500.0,0.00034931,21]
[335428357,1724224244016,-500.0,0.00034931,21]
[335428358,1724224244025,-500.0,0.00034931,21]
[335428359,1724224244034,-500.0,0.00034931,21]
[335428360,1724224244044,-500.0,0.00034931,21]
[335428361,1724224244053,-164.23903899,0.00034931,21]
[335428362,1724224244062,-503.63456216,0.00034931,21]
[335428363,1724224244073,-610.42842098,0.00034931,21]
[335428364,1724224244083,-500.0,0.00034931,21]
[335428365,1724224244093,-500.0,0.00034931,21]
[335428366,1724224244102,-500.0,0.00034931,21]
[335428367,1724224244111,-500.0,0.00034931,21]
[335428368,1724224244120,-500.0,0.00034931,21]
[335428369,1724224244130,-500.0,0.00034931,21]
[335428370,1724224244139,-500.0,0.00034931,21]
[335428371,1724224244149,-500.0,0.00034931,21]
[335428372,1724224244158,-500.0,0.00034931,21]
[335428373,1724224244168,-500.0,0.00034931,21]
[335428374,1724224244177,-500.0,0.00034931,21]
[335428375,1724224244186,-500.0,0.00034931,21]
[335428376,1724224244197,-351.50779788,0.00034931,21]
[335428377,1724224244206,-500.0,0.00034931,21]
[335428378,1724224244216,-500.0,0.00034931,21]
[335428379,1724224244225,-222.31945441,0.00034931,21]
[335428380,1724224244235,-500.0,0.00034931,21]
[335428381,1724224244243,-500.0,0.00034931,21]
[335428382,1724224244253,-500.0,0.00034931,21]
[335428383,1724224244262,-500.0,0.00034931,21]
[335428384,1724224244272,-500.0,0.00034931,21]
[335428385,1724224244282,-500.0,0.00034931,21]
[335428386,1724224244292,-508.33966225,0.00034931,21]
[335428387,1724224244301,-306.28102053,0.00034931,21]
[335428388,1724224244311,-500.0,0.00034931,21]
[335428389,1724224244321,-500.0,0.00034931,21]
[335428390,1724224244330,-500.0,0.00034931,21]
[335428391,1724224244340,-500.0,0.00034931,21]
[335428392,1724224244349,-505.67996345,0.00034931,21]
[335428393,1724224244359,-500.0,0.00034931,21]
[335428394,1724224244369,-500.0,0.00034931,21]
[335428395,1724224244378,-500.0,0.00034931,21]
[335428396,1724224244388,-500.0,0.00034931,21]
[335428397,1724224244398,-500.0,0.00034931,21]
[335428398,1724224244411,-262.47896545,0.00034931,21]
[335428399,1724224244421,-500.0,0.00034931,21]
[335428400,1724224244430,-500.0,0.00034931,21]
[335428401,1724224244440,-500.0,0.00034931,21]
[335428402,1724224244450,-500.0,0.00034931,21]
[335428403,1724224244460,-500.0,0.00034931,21]
[335428404,1724224244469,-500.0,0.00034931,21]
[335428405,1724224244479,-500.0,0.00034931,21]
[335428406,1724224244489,-538.4,0.00034931,21]
[335428407,1724224244498,-538.4,0.00034931,21]
[335428408,1724224244507,-538.4,0.00034931,21]
[335428409,1724224244518,-538.4,0.00034931,21]
[335428410,1724224244528,-538.4,0.00034931,21]
[335428411,1724224244538,-538.4,0.00034931,21]
[335428412,1724224244548,-500.0,0.00034931,21]
[335428413,1724224244558,-538.4,0.00034931,21]
[335428414,1724224244569,-500.0,0.00034931,21]
[335428415,1724224244579,-500.0,0.00034931,21]
[335428416,1724224244590,-500.0,0.00034931,21]
[335428417,1724224244600,-500.0,0.00034931,21]
[335428418,1724224244610,-538.4,0.00034931,21]
[335428419,1724224244619,-500.0,0.00034931,21]
[335428420,1724224244629,-538.4,0.00034931,21]
[335428421,1724224244639,-500.0,0.00034931,21]
[335428422,1724224244650,-500.0,0.00034931,21]
[335428423,1724224244660,-538.4,0.00034931,21]
[335428424,1724224244671,-500.0,0.00034931,21]
[335428425,1724224244681,-500.0,0.00034931,21]
[335428426,1724224244691,-538.4,0.00034931,21]
[335428427,1724224244701,-500.0,0.00034931,21]
[335428428,1724224244711,-500.0,0.00034931,21]
[335428429,1724224244723,-538.4,0.00034931,21]
[335428430,1724224244732,-500.0,0.00034931,21]
[335428431,1724224244742,-500.0,0.00034931,21]
[335428432,1724224244752,-538.4,0.00034931,21]
[335428433,1724224244762,-500.0,0.00034931,21]
[335428434,1724224244771,-500.0,0.00034931,21]
[335428435,1724224244781,-500.0,0.00034931,21]
[335428436,1724224244790,-538.4,0.00034931,21]
[335428437,1724224244799,-500.0,0.00034931,21]
[335428438,1724224244809,-500.0,0.00034931,21]
[335428439,1724224244820,-538.4,0.00034931,21]
[335428440,1724224244830,-500.0,0.00034931,21]
[335428441,1724224244840,-500.0,0.00034931,21]
[335428442,1724224244849,-500.0,0.00034931,21]
[335428443,1724224244859,-538.4,0.00034931,21]
[335428444,1724224244868,-500.0,0.00034931,21]
[335428445,1724224244878,-500.0,0.00034931,21]
[335428446,1724224244888,-500.0,0.00034931,21]
[335428447,1724224244898,-538.4,0.00034931,21]
[335428448,1724224244908,-500.0,0.00034931,21]
[335428449,1724224244918,-552.19604735,0.00034931,21]
[335428450,1724224244928,-500.0,0.00034931,21]
[335428451,1724224244937,-500.0,0.00034931,21]
[335428452,1724224244947,-339.52444209,0.00034931,21]
[335428453,1724224244957,-538.4,0.00034931,21]
[335428454,1724224244967,-500.0,0.00034931,21]
[335428455,1724224244976,-538.4,0.00034931,21]
[335428456,1724224244986,-500.0,0.00034931,21]
[335428457,1724224244996,-538.4,0.00034931,21]
[335428458,1724224245007,-500.0,0.00034931,21]
[335428459,1724224245016,-538.4,0.00034931,21]
[335428460,1724224245027,-500.0,0.00034931,21]
[335428461,1724224245037,-538.4,0.00034931,21]
[335428462,1724224245047,-500.0,0.00034931,21]
[335428463,1724224245057,-538.4,0.00034931,21]
[335428464,1724224245067,-500.0,0.00034931,21]
[335428465,1724224245078,-538.52507617,0.00034931,21]
[335428466,1724224245088,-500.0,0.00034931,21]
[335428467,1724224245097,-500.0,0.00034931,21]
[335428468,1724224245107,-500.0,0.00034931,21]
[335428469,1724224245118,-500.0,0.00034931,21]
[335428470,1724224245128,-505.8,0.00034931,21]
[335428471,1724224245138,-505.8,0.00034931,21]
[335428472,1724224245147,-500.0,0.00034931,21]
[335428473,1724224245156,-500.0,0.00034931,21]
[335428474,1724224245166,-505.8,0.00034931,21]
[335428475,1724224245175,-505.8,0.00034931,21]
[335428476,1724224245256,-500.0,0.00034931,21]
[335428477,1724224245266,-500.0,0.00034931,21]
[335428478,1724224245275,-505.8,0.00034931,21]
[335428479,1724224245285,-288.48830439,0.00034931,21]
[335428480,1724224245294,-505.8,0.00034931,21]
[335428481,1724224245304,-500.0,0.00034931,21]
[335428482,1724224245314,-505.8,0.00034931,21]
[335428483,1724224245324,-500.0,0.00034931,21]
[335428484,1724224245334,-505.8,0.00034931,21]
[335428485,1724224245343,-505.8,0.00034931,21]
[335428486,1724224245353,-500.0,0.00034931,21]
[335428487,1724224245362,-505.8,0.00034931,21]
[335428488,1724224245372,-500.0,0.00034931,21]
[335428489,1724224245382,-505.8,0.00034931,21]
[335428491,1724224245391,-505.8,0.00034931,21]
[335428493,1724224245607,-500.0,0.00034931,21]
[335428494,1724224245619,-505.8,0.00034931,21]
[335428495,1724224245629,-505.8,0.00034931,21]
[335428496,1724224245639,-500.0,0.00034931,21]
[335428497,1724224245650,-210.3776203,0.00034931,21]
[335428498,1724224245989,-289.6223797,0.00034931,21]
[335428499,1724224245999,-505.8,0.00034931,21]
[335428500,1724224246008,-500.0,0.00034931,21]
[335428501,1724224246018,-500.0,0.00034931,21]
[335428502,1724224246027,-372.33026324,0.00034931,21]
[335428503,1724224246046,-460.87988371,0.0003493,7]
[335428504,1724224374818,218.02726462,0.0002031,120]
[335428527,1724225361102,-161.33383007,9.9e-05,2]
[335428528,1724225361125,-300.0,0.00011431,2]
[335428529,1724225361148,-300.0,0.00011431,2]
[335428530,1724225361171,-2128.4147682,0.00011432,2]
[335428556,1724225432171,-151.48342059,9.9e-05,2]
[335428557,1724225432181,-3744.6142896,0.00010672,2]
[335428558,1724225432191,-300.0,0.00011431,2]
[335428559,1724225432202,-154.8463532,0.00011432,2]
[335428560,1724225432212,-154.76303071,0.00011432,2]
[335428561,1724225432222,-305.86356289,0.00011432,2]
[335428562,1724225432232,-218.51615349,0.00011432,2]
[335428563,1724225432252,-9519.18195555,0.00011432,2]
[335428572,1724225438151,-13252.40327625,0.00011432,2]
[335428574,1724225438161,-500.0,0.00011773,2]
[335428586,1724225438261,-172.00745,0.00011979,2]
[335428587,1724225438273,-1161.0,0.00012,2]
[335428588,1724225438283,-172.00745,0.00012104,2]
[335428589,1724225438295,-9661.21518978,0.0001212,2]
[335428590,1724225438306,-8845.97303828,0.0001212,2]
[335428591,1724225438315,-2282.92421799,0.0001212,3]
[335428592,1724225438325,-172.00745,0.00012228,2]
[335428593,1724225438334,-371.3542348,0.00012321,2]
[335428594,1724225438344,-172.00745,0.00012353,2]
[335428595,1724225438353,-172.00745,0.00012478,2]
[335428596,1724225438363,-1500.0,0.00012516,2]
[335428597,1724225438375,-2166.67279368,0.00012516,2]
[335428598,1724225438384,-7014.77930494,0.00012551,2]
[335428599,1724225438394,-2713.12344355,0.00012551,2]
[335428600,1724225438403,-1766.78467746,0.00012551,2]
[335428601,1724225438413,-420.0,0.00012574,2]
[335428603,1724225438422,-172.00745,0.00012603,2]
[335428605,1724225438432,-234.29469738,0.00012689,2]
[335428607,1724225438442,-57396.535159,0.00012772,2]
[335428609,1724225438451,-3093.28626151,0.00012898,2]
[335428611,1724225438460,-3063.89280968,0.000129,2]
[335428613,1724225438470,-309.37750627,0.00012934,2]
[335428615,1724225438480,-150.112233,0.00013,2]
[335428617,1724225438489,-158.63197654,0.00013477,2]
[335428619,1724225438499,-812.64750099,0.00013497,2]
[335428621,1724225438509,-154.79103211,0.00013597,2]
[335428623,1724225438518,-1613.76183123,0.00013688,2]
[335428625,1724225438528,-665.59514245,0.00013688,2]
[335428627,1724225438538,-2143.22745307,0.00013688,2]
[335428629,1724225438548,-500.0,0.00013698,2]
[335428631,1724225438558,-185.75525194,0.00013698,2]
[335428633,1724225438568,-500.0,0.00013698,2]
[335428635,1724225438577,-500.0,0.00013698,2]
[335428637,1724225438587,-500.0,0.00013698,2]
[335428639,1724225438597,-500.0,0.00013698,2]
[335428642,1724225438608,-500.0,0.00013698,2]
[335428644,1724225438620,-500.0,0.00013698,2]
[335428646,1724225438630,-500.0,0.00013698,2]
[335428648,1724225438640,-435.0,0.00013698,2]
[335428650,1724225438650,-3000.0,0.00013699,2]
[335428652,1724225438659,-500.0,0.00013699,2]
[335428654,1724225438668,-500.0,0.00013699,2]
[335428656,1724225438678,-301.984953,0.00013699,2]
[335428658,1724225438687,-500.0,0.00013699,2]
[335428660,1724225438697,-500.0,0.000137,2]
[335428662,1724225438707,-600.0,0.000137,2]
[335428664,1724225438717,-401.4765779,0.000137,2]
[335428666,1724225438727,-587.0,0.00013832,2]
[335428668,1724225438738,-42419.73400821,0.00013971,2]
[335428670,1724225438747,-20799.06185203,0.00013971,2]
[335428672,1724225438757,-413.74889628,0.00013971,2]
[335428674,1724225438767,-202.6468583,0.00013971,2]
[335428676,1724225438777,-154.85012914,0.00013971,2]
[335428678,1724225438787,-493.41512582,0.00013971,2]
[335428680,1724225438800,-154.86234636,0.00013971,2]
[335428682,1724225438810,-495.24472626,0.00013971,2]
[335428684,1724225438820,-453.2154507,0.00013971,2]
[335428686,1724225438831,-1057.37014352,0.00013971,2]
[335428688,1724225438844,-154.74467129,0.00013971,2]
[335428690,1724225438854,-154.74467129,0.00013971,2]
[335428692,1724225438864,-535.87746482,0.00013971,2]
[335428695,1724225438877,-154.76012181,0.00013971,2]
[335428697,1724225438887,-898.92251749,0.00013971,2]
[335428699,1724225438898,-2128.42304839,0.00013971,2]
[335428701,1724225438909,-521.41855438,0.00013971,2]
[335428702,1724225438919,-301.59897552,0.00013971,2]
[335428704,1724225438930,-780.13119624,0.00013971,2]
[335428707,1724225438940,-404.50920595,0.00013971,2]
[335428709,1724225438950,-155.15977941,0.00013971,2]
[335428711,1724225438960,-154.74467129,0.00014059,2]
[335428713,1724225438970,-154.71377951,0.00014245,2]
[335428715,1724225438979,-154.99398107,0.00014245,2]
[335428717,1724225438989,-154.71377951,0.00014245,2]
[335428719,1724225438999,-991.38842768,0.00014245,2]
[335428721,1724225439010,-601.94985179,0.00014245,2]
[335428723,1724225439020,-375.39357156,0.00014245,2]
[335428725,1724225439031,-160.67318862,0.00014245,2]
[335428728,1724225439043,-689.58098807,0.00014245,2]
[335428730,1724225439054,-320.30409158,0.00014245,2]
[335428732,1724225439064,-569.6147727,0.00014245,2]
[335428734,1724225439074,-154.89903915,0.00014245,2]
[335428736,1724225439084,-288.30937481,0.00014245,2]
[335428738,1724225439094,-862.64603536,0.00014245,2]
[335428740,1724225439103,-405.27319722,0.00014245,2]
[335428742,1724225439114,-161.163239,0.00014247,2]
[335428745,1724225439127,-223.19361,0.00014247,2]
[335428747,1724225439138,-1000.0,0.00014248,2]
[335428749,1724225439148,-265.08657754,0.00014519,2]
[335428751,1724225439159,-298.97351394,0.00014519,2]
[335428753,1724225439169,-544.06785329,0.00014519,2]
[335428755,1724225439179,-606.72067983,0.00015,2]
[335428757,1724225439188,-150.112233,0.000151,2]
[335428759,1724225439199,-1500.0,0.00015146,2]
[335428761,1724225439210,-823.0,0.00015215,2]
[335428763,1724225439221,-568.22413871,0.00016,2]
[335428765,1724225439233,-2000.0,0.00016251,2]
[335428767,1724225439243,-3000.0,0.000163,2]
[335428769,1724225439253,-3000.0,0.0001631,2]
[335428771,1724225439263,-3000.0,0.0001632,2]
[335428773,1724225439272,-3000.0,0.0001633,2]
[335428775,1724225439282,-57396.535159,0.0001633,2]
[335428778,1724225439292,-3000.0,0.0001634,2]
[335428780,1724225439301,-3000.0,0.0001635,2]
[335428782,1724225439311,-3000.0,0.0001636,2]
[335428784,1724225439321,-3000.0,0.0001637,2]
[335428786,1724225439331,-3000.0,0.0001638,2]
[335428788,1724225439341,-3000.0,0.0001639,2]
[335428790,1724225439351,-3000.0,0.000164,2]
[335428792,1724225439360,-3000.0,0.0001641,2]
[335428794,1724225439371,-3000.0,0.0001642,2]
[335428796,1724225439381,-3000.0,0.0001643,2]
[335428798,1724225439391,-3000.0,0.0001644,2]
[335428800,1724225439401,-3270.33474,0.0001645,2]
[335428802,1724225439411,-3063.89280966,0.00016482,2]
[335428811,1724225439421,-1152.0,0.00016736,2]
[335428813,1724225439495,-1111.18149522,0.00016968,2]
[335428815,1724225439505,-150.112233,0.000172,2]
[335428817,1724225439514,-2500.0,0.00017516,2]
[335428819,1724225439524,-34798.39512328,0.0001805,2]
[335428821,1724225439535,-1524.0,0.0001841,2]
[335428823,1724225439545,-3000.0,0.00018915,2]
[335428825,1724225439555,-500.0,0.0001909,2]
[335428827,1724225439565,-166.751608,0.00019178,2]
[335428829,1724225439575,-150.112233,0.000193,2]
[335428831,1724225439584,-800.0,0.00019634,2]
[335428833,1724225439594,-500.0,0.00019674,2]
[335428835,1724225439605,-800.0,0.00019759,2]
[335428837,1724225439614,-500.0,0.00019794,2]
[335428839,1724225439626,-4270.11,0.0002,2]
[335428841,1724225439635,-151.0,0.0002,2]
[335428843,1724225439645,-666.689952,0.0002,2]
[335428845,1724225439654,-666.689952,0.0002,2]
[335428848,1724225439664,-310.396559,0.0002,2]
[335428850,1724225439674,-310.396559,0.0002,2]
[335428852,1724225439684,-320.934815,0.0002,2]
[335428854,1724225439694,-500.0,0.00020016,2]
[335428856,1724225439704,-3063.89280966,0.00020063,2]
[335428858,1724225439714,-57396.535159,0.000203,2]
[335428860,1724225439725,-656.64881168,0.0002031,2]
[335428862,1724225439735,-287.17173053,0.0002031,2]
[335428864,1724225439746,-226.13158555,0.0002031,2]
[335428866,1724225439756,-1260.81854444,0.0002031,2]
[335428868,1724225439766,-154.69833824,0.0002031,2]
[335428870,1724225439776,-218.08775075,0.0002031,2]
[335428871,1724225439787,-1672.17781827,0.0002031,2]
[335428872,1724225439800,-3500.0,0.00020432,2]
[335428874,1724225439811,-223.19361,0.00020707,2]
[335428875,1724225439821,-500.0,0.00020991,2]
[335428876,1724225439832,-5000.0,0.00021,2]
[335428877,1724225439842,-800.0,0.00021233,2]
[335428878,1724225439852,-800.0,0.00021285,2]
[335428879,1724225439863,-150.112233,0.000214,2]
[335428880,1724225439875,-500.0,0.00021563,2]
[335428881,1724225439885,-500.0,0.00021726,2]
[335428882,1724225439894,-4000.0,0.00022054,2]
[335428883,1724225439904,-500.0,0.00022536,2]
[335428884,1724225439914,-159.43662435,0.00022662,2]
[335428885,1724225439925,-800.0,0.00022783,2]
[335428886,1724225439935,-500.0,0.00022812,2]
[335428887,1724225439945,-800.0,0.00022925,2]
[335428888,1724225439955,-500.0,0.00023026,2]
[335428889,1724225439964,-800.0,0.00023041,2]
[335428890,1724225439974,-800.0,0.00023068,2]
[335428891,1724225439985,-500.0,0.00023131,2]
[335428892,1724225439995,-4270.11,0.000232,14]
[335428894,1724225440005,-800.0,0.00023205,2]
[335428896,1724225440014,-800.0,0.00023423,2]
[335428897,1724225440024,-150.112233,0.000235,4]
[335428899,1724225440034,-3063.89280966,0.00023645,2]
[335428902,1724225440044,-3943.79124477,0.00023771,2]
[335428903,1724225440054,-546.37718041,0.00023876,2]
[335428905,1724225440063,-1009.60430589,0.00024,2]
[335428907,1724225440072,-207.55693228,0.00024455,2]
[335428909,1724225440082,-10343.5134042,0.00024485,2]
[335428910,1724225440092,-500.0,0.00024518,2]
[335428911,1724225440102,-51150.97777003,0.00024613,2]
[335428912,1724225440111,-152.285882,0.00024618,7]
[335428913,1724225440122,-666.689952,0.00024618,7]
[335428915,1724225440132,-666.689952,0.00024618,7]
[335428917,1724225440142,-310.396559,0.00024618,7]
[335428918,1724225440151,-310.396559,0.00024618,7]
[335428919,1724225440161,-320.934815,0.00024618,7]
[335428921,1724225440170,-57396.535159,0.00024648,3]
[335428923,1724225440181,-953.53947811,0.00024657,2]
[335428924,1724225440190,-782.718708,0.00024662,2]
[335428926,1724225440200,-320.53,0.000247,7]
[335428928,1724225440210,-66084.04,0.000247,14]
[335428930,1724225440221,-666.689952,0.000247,7]
[335428932,1724225440232,-666.689952,0.000247,7]
[335428934,1724225440243,-310.396559,0.000247,7]
[335428936,1724225440252,-310.396559,0.000247,7]
[335428938,1724225440262,-320.934815,0.000247,7]
[335428939,1724225440271,-176.9,0.00024745,2]
[335428940,1724225440281,-155.46509081,0.00024756,2]
[335428941,1724225440291,-277.68803325,0.00024803,2]
[335428942,1724225440301,-150.112233,0.00025,4]
[335428943,1724225440310,-3091.24172318,0.00025034,2]
[335428944,1724225440319,-500.0,0.00025057,2]
[335428945,1724225440329,-500.0,0.00025331,2]
[335428946,1724225440339,-800.0,0.00025487,2]
[335428947,1724225440348,-150.112233,0.000256,5]
[335428948,1724225440358,-176.9,0.00025671,2]
[335428949,1724225440369,-500.0,0.00025749,2]
[335428950,1724225440378,-4270.11,0.000258,14]
[335428951,1724225440387,-150.112233,0.00026,8]
[335428952,1724225440396,-5000.0,0.00026,2]
[335428953,1724225440405,-500.0,0.00026207,2]
[335428954,1724225440415,-500.0,0.00026338,2]
[335428955,1724225440425,-800.0,0.00026424,2]
[335428957,1724225440435,-161.163239,0.00026521,2]
[335428959,1724225440444,-176.9,0.00026597,2]
[335428960,1724225440453,-153.06,0.000266,31]
[335428961,1724225440463,-153.06,0.000266,31]